Cogmind - Beta 16 @@@ ROGUE MODE // 2025.11.03 @ 16:51:24 Player: kiul Result: Destroyed by X-82 Rainmaker with Heavy Flak Cannon Performance ------------- Evolutions (8) 4000 Regions Visited (17) 3400 Robots Destroyed (28) 140 Value Destroyed (648) 648 Prototype IDs (9) 180 Alien Tech Used (0) 0 Bonus (500) 500 TOTAL SCORE: 8868 Bonus ------- Entered DSFs 500 Cogmind --------- Core Integrity 0/1450 Matter 99/300 Energy 100/100 System Corruption 0% Temperature Cool (0) Movement Core (50) Location -2/Testing Parts ------- > --- POWER (2) -------- (None) > --- PROPULSION (8) --- (None) > --- UTILITY (11) ----- Improved System Guard > --- WEAPON (2) ------- (None) > --- INVENTORY (5) ---- Biometal Heavy Treads Medium Storage Unit Improved Terrain Scanner KE Penetrator Peak State ------------ > --- POWER ------------ Micro Nuclear Core > --- PROPULSION ------- Biometal Heavy Treads Biometal Heavy Treads Biometal Heavy Treads Impulse Thruster Impulse Thruster > --- UTILITY ---------- Advanced Power Amplifier Advanced Weight Redist. System Advanced Weight Redist. System Improved Utility Shielding Improved System Guard > --- WEAPON ----------- (None) > --- INVENTORY -------- Medium Storage Unit Improved Terrain Scanner KE Penetrator [Rating: 96] Favorites ----------- Power Cooled Ion Engine Engine Cooled Ion Engine Power Core Neutrino Core Propulsion Improved Cesium-ion Thruster Treads Biometal Heavy Treads Wheel Wheel Flight Unit Improved Cesium-ion Thruster Utility Medium Storage Unit Device Weight Redist. System Storage Medium Storage Unit Processor Improved Signal Interpreter Hackware Improved System Shield Protection Improved Utility Shielding Weapon Mini Grenade Launcher Energy Gun Heavy EM Shotgun Energy Cannon Advanced Beam Cannon Ballistic Gun Precision Assault Rifle Launcher Mini Grenade Launcher Build | -11 -10 -9 -9 -8 -8 -8 -6 -5 -4 -4 -4 -4 -3 -3 -3 -2 -2 ------- Run | Yrd Mat Mat Min Mat Sto Rec Fac Fac Fac Upp Upp War Pro Res DSF Res Tes Slots Evolved 16 | . . 2 . 2 . . 4 2 2 . . . . 2 . 2 . Power 1 | . . . . 1 . . . . . . . . . . . . . Propulsion 6 | . . 2 . 1 . . 1 . . . . . . 2 . . . Utility 9 | . . . . . . . 3 2 2 . . . . . . 2 . Weapon . | . . . . . . . . . . . . . . . . . . Parts Attached 67 | 6 . 9 . 6 8 . 9 8 . . 3 . 4 . 5 9 . Power 10 | 1 . 1 . 2 2 . . 3 . . . . 1 . . . . Engine 6 | 1 . 1 . 2 2 . . . . . . . . . . . . Core 4 | . . . . . . . . 3 . . . . 1 . . . . Reactor . | . . . . . . . . . . . . . . . . . . Propulsion 26 | 2 . 5 . 1 4 . 5 1 . . . . . . 4 4 . Treads 3 | . . . . . . . . . . . . . . . 3 . . Leg . | . . . . . . . . . . . . . . . . . . Wheel 2 | 2 . . . . . . . . . . . . . . . . . Hover . | . . . . . . . . . . . . . . . . . . Flight 21 | . . 5 . 1 4 . 5 1 . . . . . . 1 4 . Utility 21 | 1 . 2 . . 1 . 3 4 . . 3 . 2 . . 5 . Device 11 | . . 1 . . 1 . 2 3 . . . . 1 . . 3 . Storage 2 | 1 . 1 . . . . . . . . . . . . . . . Processor 4 | . . . . . . . 1 1 . . 1 . . . . 1 . Hackware 3 | . . . . . . . . . . . 2 . 1 . . . . Protection 1 | . . . . . . . . . . . . . . . . 1 . Artifact . | . . . . . . . . . . . . . . . . . . Weapon 10 | 2 . 1 . 3 1 . 1 . . . . . 1 . 1 . . Energy Gun 3 | 1 . . . 1 1 . . . . . . . . . . . . Energy Cannon 1 | . . 1 . . . . . . . . . . . . . . . Ballistic Gun 3 | 1 . . . . . . 1 . . . . . 1 . . . . Ballistic Cannon . | . . . . . . . . . . . . . . . . . . Launcher 3 | . . . . 2 . . . . . . . . . . 1 . . Special Weapon . | . . . . . . . . . . . . . . . . . . Impact Weapon . | . . . . . . . . . . . . . . . . . . Slashing Weapon . | . . . . . . . . . . . . . . . . . . Piercing Weapon . | . . . . . . . . . . . . . . . . . . Special Melee Weapon . | . . . . . . . . . . . . . . . . . . Unidentified Prototypes 9 | . . 3 . 1 3 . 2 . . . . . . . . . . Parts Lost 43 | . . 2 . . 5 . . 4 . . 12 . 6 . 3 11 . Power 5 | . . . . . 1 . . 2 . . 1 . . . . 1 . Propulsion 18 | . . 2 . . 2 . . 1 . . 4 . 2 . . 7 . Utility 16 | . . . . . 1 . . 1 . . 5 . 4 . 2 3 . Weapon 4 | . . . . . 1 . . . . . 2 . . . 1 . . Highest Loss Streak 11 | . . 2 . . 3 . . 2 . . 11 . 5 . 2 8 . To Critical Strikes . | . . . . . . . . . . . . . . . . . . Average Backups 7 | . 5 8 10 9 9 8 8 9 9 10 7 7 5 5 5 4 4 Power 1 | . 1 1 2 1 1 1 1 1 2 3 3 3 3 1 1 . . Propulsion 1 | . 2 4 4 3 2 2 2 1 1 1 . . . . . . 1 Utility 3 | . . 1 3 4 4 4 3 6 6 6 4 4 2 3 3 2 2 Weapon 1 | . 2 1 1 1 1 1 1 1 . . . . . 1 1 1 1 Tool/Special . | . . . . . . . . . . . . . . . . . . Unused Backups 20 | . 1 4 1 3 2 . . 6 . . . . 2 . . . 1 Power 3 | . . . . . . . . 1 . . . . 2 . . . . Propulsion 4 | . . 3 . 1 . . . . . . . . . . . . . Utility 8 | . . . . 2 1 . . 4 . . . . . . . . 1 Weapon 5 | . 1 1 1 . 1 . . 1 . . . . . . . . . Tool/Special . | . . . . . . . . . . . . . . . . . . Average Slot Usage (%) 70 | . 85 77 100 95 97 90 98 93 84 84 68 42 43 14 9 27 4 Engine 7 | . 14 11 11 17 17 18 13 4 . . . . . . . . . Core 2 | . . . . . . . . 6 10 10 7 5 2 . . 1 . Treads 1 | . . . . . . . . . . . . . . . 3 10 . Wheel 3 | . 28 17 . . . . . . . . . . . . . . . Flight 21 | . . 11 44 43 44 45 40 29 26 26 20 10 6 . 1 4 . Device 10 | . . 4 11 9 8 9 19 22 21 21 9 5 13 4 . 6 . Storage 6 | . 14 11 11 9 9 9 6 5 5 5 5 5 4 . . . . Processor 4 | . . . . . . . 5 10 10 10 11 10 10 9 3 2 4 Hackware 1 | . . . . . . . . . . . 7 5 5 . . . . Energy Gun 1 | . 14 1 . 3 7 . . . . . . . . . . . . Energy Cannon 1 | . . 9 11 4 . . . . . . . . . . . . . Ballistic Gun 3 | . 14 11 11 5 . . 5 5 5 5 3 . . . . . . Launcher 2 | . . . . 2 9 9 6 5 5 5 1 . . . . . . Peak Build Rating 96 | 6 7 24 24 30 34 30 55 76 77 77 86 37 42 14 60 96 9 Average Rating 41 | 3 6 13 24 26 31 30 52 71 76 77 61 37 34 14 19 65 9 On Entrance 33 | . 6 7 24 24 29 30 30 55 76 77 77 37 37 14 14 60 9 Avg Prop Armor Cover (%) 32 | . . 2 . . . . . . . . . . . . 42 39 . Naked Turns 17 | . . . . . . . . . . . . . . . 17 . . Heaviest Build 40 | 13 13 24 24 28 31 28 34 40 38 38 38 25 18 1 1 11 . Greatest Support 159 | 20 20 26 26 31 31 31 38 47 47 47 48 12 18 3 4 159 3 Greatest Overweight (x) 2 | . . 1 . . 1 . . . . . 2 2 1 . . . . Average Overweight (x) . | . . . . . . . . . . . . 2 . . . . . Largest Inventory Capacity 10 | 8 8 10 10 10 10 10 10 10 10 10 10 10 10 5 5 5 5 Average Capacity 8 | 7 8 8 10 10 10 10 10 10 10 10 10 10 9 5 5 5 5 Most Carried 10 | 2 8 10 10 10 10 8 10 10 10 10 9 7 8 5 5 5 5 Average Carried 7 | . 6 8 9 9 9 8 8 9 9 10 7 7 5 5 5 4 5 Final Capacity 10 | 8 8 10 10 10 10 10 10 10 10 10 10 10 5 5 5 5 5 Final Carried 10 | 2 8 10 10 10 8 8 10 9 10 10 7 7 5 5 5 5 5 Class Distribution -------------------- 45% | Sprinter 42% | Mutant 6% | Scout Dominant Class ---------------- Mutant | -10/Materials Mutant | -9/Materials Sprinter | -9/Mines Sprinter | -8/Materials Sprinter | -8/Storage Sprinter | -8/Recycling Sprinter | -6/Factory Scout | -5/Factory Sprinter | -4/Factory Sprinter | -4/Upper Caves Hacker-Sprinter | -4/Upper Caves Mutant | -4/Warlord Sprinter | -3/Proximity Caves Sprinter | -3/Research Mutant | -3/DSF Mutant | -2/Research Mutant | -2/Testing Resources | -11 -10 -9 -9 -8 -8 -8 -6 -5 -4 -4 -4 -4 -3 -3 -3 -2 -2 ----------- Run | Yrd Mat Mat Min Mat Sto Rec Fac Fac Fac Upp Upp War Pro Res DSF Res Tes Matter Collected 994 | 203 . 196 . . 56 300 . 6 . 69 84 . 71 . 9 . . Remotely . | . . . . . . . . . . . . . . . . . . Salvage Created 750 | . 27 364 . 60 131 . 10 132 . . . . . . 26 . . Parts 59 | . 3 28 . 1 12 . 4 3 . . . . . . 8 . . Haulers Intercepted 4 | . . 2 . 1 1 . . . . . . . . . . . . Recyclers Shooed . | . . . . . . . . . . . . . . . . . . Parts Field Recycled . | . . . . . . . . . . . . . . . . . . Retrieved Matter . | . . . . . . . . . . . . . . . . . . Parts Self-Destructed . | . . . . . . . . . . . . . . . . . . Prevented . | . . . . . . . . . . . . . . . . . . Parts Restored . | . . . . . . . . . . . . . . . . . . Kills | -11 -10 -9 -9 -8 -8 -8 -6 -5 -4 -4 -4 -4 -3 -3 -3 -2 -2 ------- Run | Yrd Mat Mat Min Mat Sto Rec Fac Fac Fac Upp Upp War Pro Res DSF Res Tes Combat Hostiles Destroyed 18 | . 2 8 . . 5 . . . . . . . . . 3 . . Guns 6 | . 2 4 . . . . . . . . . . . . . . . Cannons 4 | . . 4 . . . . . . . . . . . . . . . AOE 8 | . . . . . 5 . . . . . . . . . 3 . . Classes Destroyed 10 | . 1 4 . . 3 . . 1 . . . . . . 1 . . Worker 1 | . . . . . 1 . . . . . . . . . . . . Builder 2 | . . . . . 1 . 1 . . . . . . . . . . Hauler 4 | . . 2 . 1 1 . . . . . . . . . . . . Recycler 1 | . . . . . . . . 1 . . . . . . . . . Operator 1 | . . . . . 1 . . . . . . . . . . . . Watcher 1 | . . 1 . . . . . . . . . . . . . . . Swarmer 9 | . 2 4 . . 3 . . . . . . . . . . . . Cutter 3 | . . . . . . . . . . . . . . . 3 . . Grunt 4 | . . 3 . . 1 . . . . . . . . . . . . Sentry 2 | . . 1 . . 1 . . . . . . . . . . . . Best Kill Streak 6 | . 2 6 . 1 4 . 1 1 . . . . . . 3 . . Combat Bots Only 5 | . 2 5 . . 3 . . . . . . . . . 3 . . Max Kills in Single Turn 3 | . 1 2 . 1 3 . 1 1 . . . . . . 2 . . Gunslinging . | . . . . . . . . . . . . . . . . . . Exploded 3 | . . . . . 3 . . . . . . . . . 2 . . Melee . | . . . . . . . . . . . . . . . . . . Uniques/NPCs Destroyed . | . . . . . . . . . . . . . . . . . . Combat | -11 -10 -9 -9 -8 -8 -8 -6 -5 -4 -4 -4 -4 -3 -3 -3 -2 -2 -------- Run | Yrd Mat Mat Min Mat Sto Rec Fac Fac Fac Upp Upp War Pro Res DSF Res Tes Hostile Shots Fired 818 | . 12 44 3 13 72 . 13 54 . 8 51 . 72 . 295 169 12 Missed 375 | . 6 8 1 9 25 . 5 23 . 7 19 . 34 . 172 57 9 Hits 443 | . 6 36 2 4 47 . 8 31 . 1 32 . 38 . 123 112 3 Melee 7 | . . . . . 1 . . . . . . . . . 6 . . Projectile 436 | . 6 36 2 4 46 . 8 31 . 1 32 . 38 . 117 112 3 AOE 1 | . . . . . . . . 1 . . . . . . . . . Critical Strikes 14 | . . 1 . . 3 . . 1 . . 2 . 2 . 4 1 . Actively Blocked 1 | . . . . . . . . . . . . . . . . 1 . Damage Taken 8372 | . 42 425 34 50 885 . 84 771 . . 608 . 762 . 1809 2886 16 Core 3677 | . 12 81 . . 282 . . 199 . . 169 . 566 . 914 1446 8 Absorbed by Shields 26 | . . . . . . . . . . . . . . . 26 . . Redirected to Shielding 101 | . . . . . . . . . . . . . . . . 101 . Regen/Repaired (Parts) 125 | . . . . 125 . . . . . . . . . . . . . Core Remaining (%) 70 | 100 95 . 79 . . 48 100 80 . . . . 36 . 29 . . Volleys Fired 86 | . 4 34 . 8 25 . 2 10 . . . . . . 3 . . Largest 2 | . 2 2 . 2 2 . 2 2 . . . . . . 1 . . Hottest 118 | . 60 88 . 118 85 . 58 58 . . . . . . 49 . . Shots Fired 140 | . 8 66 . 10 34 . 3 16 . . . . . . 3 . . Gun 81 | . 8 34 . 8 19 . 2 10 . . . . . . . . . Cannon 34 | . . 32 . 2 . . . . . . . . . . . . . Launcher 25 | . . . . . 15 . 1 6 . . . . . . 3 . . Special . | . . . . . . . . . . . . . . . . . . Kinetic 50 | . 4 34 . . . . 2 10 . . . . . . . . . Thermal 50 | . 4 32 . 2 12 . . . . . . . . . . . . Explosive 25 | . . . . . 15 . 1 6 . . . . . . 3 . . Electromagnetic 15 | . . . . 8 7 . . . . . . . . . . . . Robot Hit Streak 9 | . 1 9 . 5 7 . . 2 . . . . . . . . . Robot Miss Streak 4 | . 3 4 . 2 2 . . 1 . . . . . . . . . Penetration Max . | . . . . . . . . . . . . . . . . . . Secondary Targets . | . . . . . . . . . . . . . . . . . . Shots Hit Robots 59 | . 2 35 . 6 14 . . 2 . . . . . . . . . Core Hits 47 | . 2 15 . . 19 . 2 6 . . . . . . 3 . . Critical Kills . | . . . . . . . . . . . . . . . . . . Critical Parts Destroyed . | . . . . . . . . . . . . . . . . . . Critical Strikes 1 | . . . . . 1 . . . . . . . . . . . . Burn 1 | . . . . . 1 . . . . . . . . . . . . Melee Attacks . | . . . . . . . . . . . . . . . . . . Impact . | . . . . . . . . . . . . . . . . . . Slashing . | . . . . . . . . . . . . . . . . . . Piercing . | . . . . . . . . . . . . . . . . . . Sneak Attacks . | . . . . . . . . . . . . . . . . . . Combat Hostiles . | . . . . . . . . . . . . . . . . . . Follow-up Attacks . | . . . . . . . . . . . . . . . . . . Damage Inflicted 2308 | . 27 617 . 107 908 . 106 131 . . . . . . 409 3 . Guns 555 | . 27 205 . 107 159 . 19 38 . . . . . . . . . Cannons 412 | . . 412 . . . . . . . . . . . . . . . Explosions 1328 | . . . . . 739 . 87 93 . . . . . . 409 . . Melee . | . . . . . . . . . . . . . . . . . . Ramming 13 | . . . . . 10 . . . . . . . . . . 3 . Kinetic 277 | . 15 205 . . . . 19 38 . . . . . . . . . Thermal 594 | . 12 412 . . 97 . . 73 . . . . . . . . . Explosive 1255 | . . . . . 739 . 87 20 . . . . . . 409 . . Electromagnetic 169 | . . . . 107 62 . . . . . . . . . . . . Impact . | . . . . . . . . . . . . . . . . . . Slashing . | . . . . . . . . . . . . . . . . . . Piercing . | . . . . . . . . . . . . . . . . . . Highest Corruption 1 | . . . . . . . 1 1 . . . . . . . . . Average Corruption 1 | . . . . . . . 1 1 . . . . . . . . . Corruption Purged . | . . . . . . . . . . . . . . . . . . Corruption Blocked . | . . . . . . . . . . . . . . . . . . Effects 1 | . . . . . . . . 1 . . . . . . . . . Data Loss (minor) 1 | . . . . . . . . 1 . . . . . . . . . Overload Shots . | . . . . . . . . . . . . . . . . . . Overflow Damage 146 | . . 7 . . 86 . . 43 . . . . . . 10 . . Projectiles 7 | . . 7 . . . . . . . . . . . . . . . Explosions 137 | . . . . . 84 . . 43 . . . . . . 10 . . Melee 2 | . . . . . 2 . . . . . . . . . . . . Knockbacks . | . . . . . . . . . . . . . . . . . . Impact . | . . . . . . . . . . . . . . . . . . Kinetic . | . . . . . . . . . . . . . . . . . . Secondary . | . . . . . . . . . . . . . . . . . . Self-Inflicted Damage 505 | . . . . . 275 . . 81 . . . . . . 148 1 . Shots 13 | . . . . . 6 . . 5 . . . . . . 2 . . Rammed 3 | . . . . . 2 . . . . . . . . . . 1 . Targets Rammed 3 | . . . . . 2 . . . . . . . . . . 1 . Kicked . | . . . . . . . . . . . . . . . . . . Crushed . | . . . . . . . . . . . . . . . . . . Highest Temperature 331 | . . 282 6 254 297 218 331 . . . 39 . . . . . . Average Temperature 102 | . . 98 4 103 113 111 103 . . . 16 . . . . . . Received Heat Transfer 1188 | . . 195 18 9 234 . 12 24 . . 123 . 69 . 153 351 . Effects 4 | . . . . . 3 . 1 . . . . . . . . . . Energy Bleed 1 | . . . . . . . 1 . . . . . . . . . . Interference 3 | . . . . . 3 . . . . . . . . . . . . Siege Activations . | . . . . . . . . . . . . . . . . . . Martial Activations . | . . . . . . . . . . . . . . . . . . Shielding Activations . | . . . . . . . . . . . . . . . . . . Robots Disrupted . | . . . . . . . . . . . . . . . . . . Combat Hostiles . | . . . . . . . . . . . . . . . . . . Robots Corrupted 1 | . . . . 1 . . . . . . . . . . . . . Combat Hostiles . | . . . . . . . . . . . . . . . . . . Parts Fried 1 | . . . . 1 . . . . . . . . . . . . . Impact Corruptions 1 | . . . . . 1 . . . . . . . . . . . . Robots Melted . | . . . . . . . . . . . . . . . . . . Combat Hostiles . | . . . . . . . . . . . . . . . . . . Parts Melted 1 | . . 1 . . . . . . . . . . . . . . . Heat Transferred 1074 | . 25 740 . . 259 . . 50 . . . . . . . . . Parts Sabotaged . | . . . . . . . . . . . . . . . . . . Parts Stolen . | . . . . . . . . . . . . . . . . . . Parts Stripped . | . . . . . . . . . . . . . . . . . . Power Chain Reactions . | . . . . . . . . . . . . . . . . . . Alert | -11 -10 -9 -9 -8 -8 -8 -6 -5 -4 -4 -4 -4 -3 -3 -3 -2 -2 ------- Run | Yrd Mat Mat Min Mat Sto Rec Fac Fac Fac Upp Upp War Pro Res DSF Res Tes Maximum Alert Level 2 | . . . . . 2 . . 1 . . . . . . 1 . . Low Security (%) 92 | 100 100 100 100 100 53 100 100 88 100 . . . . 100 72 100 100 Level 1 7 | . . . . . 45 . . 11 . . . . . . 27 . . Level 2 . | . . . . . . . . . . . . . . . . . . Level 3 . | . . . . . . . . . . . . . . . . . . Level 4 . | . . . . . . . . . . . . . . . . . . Level 5 . | . . . . . . . . . . . . . . . . . . High Security . | . . . . . . . . . . . . . . . . . . Max Security . | . . . . . . . . . . . . . . . . . . Peak Influence 401 | . 30 128 49 20 401 152 102 310 151 . . . . 57 203 114 . Initial 152 | . . 12 49 14 . 152 46 27 151 . . . . 57 42 114 . Average 72 | . 8 56 46 5 190 131 65 74 151 . . . . 57 158 38 . Influence Increases 2125 | . 40 302 . 41 561 . 161 409 . 30 135 . 255 . 191 . . Destroy 0b10 Robot/C 360 | . 40 160 . . 100 . . . . . . . . . 60 . . Destroy 0b10 Robot/NC 50 | . . 15 . 5 20 . 5 5 . . . . . . . . . Destroy Leader 70 | . . 36 . 2 22 . . . . . . . . . 10 . . Successful Hack 58 | . . . . 4 26 . . 28 . . . . . . . . . Disable Machine 210 | . . . . 15 105 . 15 60 . . . . . . 15 . . Destroy Structure 297 | . . 1 . . 108 . 6 106 . . . . . . 76 . . Partial Spotted 90 | . . . . 15 15 . 45 15 . . . . . . . . . Lose Combat Pursuer 990 | . . 90 . . 165 . 90 195 . 30 135 . 255 . 30 . . Influence Decreases 2125 | . 10 204 89 80 170 279 216 156 159 137 149 30 170 28 45 203 . Entered New Map 844 | . . 18 79 25 . 239 66 30 159 57 9 30 . 28 15 89 . Time Decay 1013 | . 10 166 10 55 120 40 150 112 . 80 50 . 110 . . 110 . Lost Part 268 | . . 20 . . 50 . . 14 . . 90 . 60 . 30 4 . Squads Dispatched 12 | . . 2 . 1 . . 2 3 . . 1 . . . 1 2 . Investigation 2 | . . . . 1 . . 1 . . . . . . . . . . Extermination 2 | . . . . . . . . 1 . . . . . . . 1 . Reinforcement 7 | . . 2 . . . . 1 2 . . . . . . 1 1 . Assault 1 | . . . . . . . . . . . 1 . . . . . . Garrison . | . . . . . . . . . . . . . . . . . . Intercept . | . . . . . . . . . . . . . . . . . . Searches Triggered . | . . . . . . . . . . . . . . . . . . Construction Impeded 2 | . . . . . . . 1 1 . . . . . . . . . Haulers Reinforced . | . . . . . . . . . . . . . . . . . . Active Scanning Responses . | . . . . . . . . . . . . . . . . . . Cargo Convoy Interrupts . | . . . . . . . . . . . . . . . . . . Stealth | -11 -10 -9 -9 -8 -8 -8 -6 -5 -4 -4 -4 -4 -3 -3 -3 -2 -2 --------- Run | Yrd Mat Mat Min Mat Sto Rec Fac Fac Fac Upp Upp War Pro Res DSF Res Tes Distress Signals 12 | . . 4 . 2 4 . 2 . . . . . . . . . . Communications Jammed . | . . . . . . . . . . . . . . . . . . Distress Signals . | . . . . . . . . . . . . . . . . . . Times Spotted 172 | . 3 22 2 23 26 . 10 23 1 3 13 . 17 . 13 14 2 Peak Tracking Total 22 | . 3 7 2 22 11 . 6 13 1 2 6 . 9 . 7 12 3 Tactical Retreats 30 | . . 3 . . 5 . 5 5 . 1 4 . 5 . 2 . . Traps | -11 -10 -9 -9 -8 -8 -8 -6 -5 -4 -4 -4 -4 -3 -3 -3 -2 -2 ------- Run | Yrd Mat Mat Min Mat Sto Rec Fac Fac Fac Upp Upp War Pro Res DSF Res Tes Traps Triggered 9 | . . . . 1 1 . 1 3 . . . . . . 3 . . Indirectly . | . . . . . . . . . . . . . . . . . . Trap Hack Attempts . | . . . . . . . . . . . . . . . . . . Triggered . | . . . . . . . . . . . . . . . . . . Disarmed . | . . . . . . . . . . . . . . . . . . Reprogrammed . | . . . . . . . . . . . . . . . . . . Reused . | . . . . . . . . . . . . . . . . . . Traps Extracted . | . . . . . . . . . . . . . . . . . . Installed . | . . . . . . . . . . . . . . . . . . Triggered . | . . . . . . . . . . . . . . . . . . Machines | -11 -10 -9 -9 -8 -8 -8 -6 -5 -4 -4 -4 -4 -3 -3 -3 -2 -2 ---------- Run | Yrd Mat Mat Min Mat Sto Rec Fac Fac Fac Upp Upp War Pro Res DSF Res Tes Machines Disabled 14 | . . . . 1 7 . 1 4 . . . . . . 1 . . Max in Single Turn 4 | . . . . 1 2 . 1 4 . . . . . . 1 . . Machines Repaired . | . . . . . . . . . . . . . . . . . . Machines Dismantled . | . . . . . . . . . . . . . . . . . . Machines Sabotaged . | . . . . . . . . . . . . . . . . . . Overloaded Fab Kills . | . . . . . . . . . . . . . . . . . . Hacking | -11 -10 -9 -9 -8 -8 -8 -6 -5 -4 -4 -4 -4 -3 -3 -3 -2 -2 --------- Run | Yrd Mat Mat Min Mat Sto Rec Fac Fac Fac Upp Upp War Pro Res DSF Res Tes Machines Accessed 15 | . . . . 1 6 2 1 2 . . . . 1 1 . 1 . Terminals 11 | . . . . . 6 . 1 1 . . . . 1 1 . 1 . Fabricators . | . . . . . . . . . . . . . . . . . . Repair Stations 1 | . . . . 1 . . . . . . . . . . . . . Recycling Units . | . . . . . . . . . . . . . . . . . . Scanalyzers 1 | . . . . . . . . 1 . . . . . . . . . Garrison Access . | . . . . . . . . . . . . . . . . . . Total Hacks 42 | . . . . 7 16 9 1 5 . . . . 1 1 . 2 . Successful 27 | . . . . 5 7 9 . 3 . . . . 1 1 . 1 . Failed 15 | . . . . 2 9 . 1 2 . . . . . . . 1 . Catastrophic 1 | . . . . . . . 1 . . . . . . . . . . Database Lockouts . | . . . . . . . . . . . . . . . . . . Manual 2 | . . . . . 1 . 1 . . . . . . . . . . Terminals 22 | . . . . . 16 . 1 1 . . . . 1 1 . 2 . Fabricators . | . . . . . . . . . . . . . . . . . . Repair Stations 7 | . . . . 7 . . . . . . . . . . . . . Recycling Units . | . . . . . . . . . . . . . . . . . . Scanalyzers 4 | . . . . . . . . 4 . . . . . . . . . Garrison Access . | . . . . . . . . . . . . . . . . . . Terminal Hacks 20 | . . . . . 7 9 . 1 . . . . 1 1 . 1 . Record 11 | . . . . . 1 9 . . . . . . 1 . . . . Open Door 4 | . . . . . 3 . . 1 . . . . . . . . . Open DSF 2 | . . . . . . . . . . . . . . 1 . 1 . Hauler Manifests 1 | . . . . . 1 . . . . . . . . . . . . Registered Components 1 | . . . . . 1 . . . . . . . . . . . . Zone Layout 1 | . . . . . 1 . . . . . . . . . . . . Fabricator Hacks . | . . . . . . . . . . . . . . . . . . Repair Station Hacks 5 | . . . . 5 . . . . . . . . . . . . . Scan Component 3 | . . . . 3 . . . . . . . . . . . . . Repair 2 | . . . . 2 . . . . . . . . . . . . . Recycling Unit Hacks . | . . . . . . . . . . . . . . . . . . Scanalyzer 2 | . . . . . . . . 2 . . . . . . . . . Retrieve Study 2 | . . . . . . . . 2 . . . . . . . . . Garrison Access Hacks . | . . . . . . . . . . . . . . . . . . Unauthorized Hacks . | . . . . . . . . . . . . . . . . . . Terminals . | . . . . . . . . . . . . . . . . . . Fabricators . | . . . . . . . . . . . . . . . . . . Repair Stations . | . . . . . . . . . . . . . . . . . . Recycling Units . | . . . . . . . . . . . . . . . . . . Scanalyzers . | . . . . . . . . . . . . . . . . . . Garrison Access . | . . . . . . . . . . . . . . . . . . Data Cores Recovered . | . . . . . . . . . . . . . . . . . . Used . | . . . . . . . . . . . . . . . . . . Hacking Detections 4 | . . . . 1 1 . 1 1 . . . . . . . . . Full Trace Events 2 | . . . . . 1 . 1 . . . . . . . . . . Feedback Events . | . . . . . . . . . . . . . . . . . . Feedback Blocked . | . . . . . . . . . . . . . . . . . . Robot Schematics Acquired . | . . . . . . . . . . . . . . . . . . Robots Built . | . . . . . . . . . . . . . . . . . . Authchips . | . . . . . . . . . . . . . . . . . . Time . | . . . . . . . . . . . . . . . . . . Total Robot Build Rating . | . . . . . . . . . . . . . . . . . . Part Schematics Acquired . | . . . . . . . . . . . . . . . . . . Parts Built . | . . . . . . . . . . . . . . . . . . Authchips . | . . . . . . . . . . . . . . . . . . Time . | . . . . . . . . . . . . . . . . . . Total Part Build Rating . | . . . . . . . . . . . . . . . . . . Part Studies Acquired 2 | . . . . . . . . 2 . . . . . . . . . Parts Repaired 2 | . . . . 2 . . . . . . . . . . . . . Time 102 | . . . . 102 . . . . . . . . . . . . . Parts Recycled . | . . . . . . . . . . . . . . . . . . Recycled Matter . | . . . . . . . . . . . . . . . . . . Retrieved Matter . | . . . . . . . . . . . . . . . . . . Retrieved Components . | . . . . . . . . . . . . . . . . . . Parts Scanalyzed . | . . . . . . . . . . . . . . . . . . Part Schematics Acquired . | . . . . . . . . . . . . . . . . . . Parts Damaged . | . . . . . . . . . . . . . . . . . . Bothacking | -11 -10 -9 -9 -8 -8 -8 -6 -5 -4 -4 -4 -4 -3 -3 -3 -2 -2 ------------ Run | Yrd Mat Mat Min Mat Sto Rec Fac Fac Fac Upp Upp War Pro Res DSF Res Tes Used RIF Installer . | . . . . . . . . . . . . . . . . . . Robots Hacked . | . . . . . . . . . . . . . . . . . . Non-combat . | . . . . . . . . . . . . . . . . . . Combat . | . . . . . . . . . . . . . . . . . . Robot Hacks Applied . | . . . . . . . . . . . . . . . . . . Relay Couplers Released . | . . . . . . . . . . . . . . . . . . Fabnet Peak Effective % . | . . . . . . . . . . . . . . . . . . Robots Rewired . | . . . . . . . . . . . . . . . . . . Allies Hacked . | . . . . . . . . . . . . . . . . . . Hacks Repelled . | . . . . . . . . . . . . . . . . . . Allies | -11 -10 -9 -9 -8 -8 -8 -6 -5 -4 -4 -4 -4 -3 -3 -3 -2 -2 -------- Run | Yrd Mat Mat Min Mat Sto Rec Fac Fac Fac Upp Upp War Pro Res DSF Res Tes Total Allies . | . . . . . . . . . . . . . . . . . . Largest Group . | . . . . . . . . . . . . . . . . . . Highest-Rated Group . | . . . . . . . . . . . . . . . . . . Highest-Rated Ally . | . . . . . . . . . . . . . . . . . . Total Orders . | . . . . . . . . . . . . . . . . . . Ally Attacks . | . . . . . . . . . . . . . . . . . . Total Damage . | . . . . . . . . . . . . . . . . . . Kills . | . . . . . . . . . . . . . . . . . . Allies Corrupted . | . . . . . . . . . . . . . . . . . . Allies Melted . | . . . . . . . . . . . . . . . . . . Intel | -11 -10 -9 -9 -8 -8 -8 -6 -5 -4 -4 -4 -4 -3 -3 -3 -2 -2 ------- Run | Yrd Mat Mat Min Mat Sto Rec Fac Fac Fac Upp Upp War Pro Res DSF Res Tes Active Infowar (turns) 1297 | . . . . . . . 316 276 11 160 142 150 242 . . . . Optics 980 | . . . . . . . . 275 11 160 142 150 242 . . . . Sensors 514 | . . . . . . . 316 198 . . . . . . . . . Triangulation 749 | . . . . . . . . 44 11 160 142 150 242 . . . . Robot Analysis Total . | . . . . . . . . . . . . . . . . . . Derelict Logs Recovered 2 | . . . . . . . . . . . 2 . . . . . . Drone Launches . | . . . . . . . . . . . . . . . . . . Drone Recoveries . | . . . . . . . . . . . . . . . . . . Exploration | -11 -10 -9 -9 -8 -8 -8 -6 -5 -4 -4 -4 -4 -3 -3 -3 -2 -2 ------------- Run | Yrd Mat Mat Min Mat Sto Rec Fac Fac Fac Upp Upp War Pro Res DSF Res Tes Turns Passed 3027 | 48 76 421 26 240 246 99 318 276 11 160 142 150 308 15 124 366 1 Spaces Moved 5338 | 48 71 324 58 326 490 381 622 913 36 357 367 93 763 30 176 282 1 Core 313 | 4 . . . . . . . . . . . . 81 30 143 54 1 Treads 11 | . . . . . . . . . . . . . . . . 11 . Legs . | . . . . . . . . . . . . . . . . . . Wheels 301 | 44 71 186 . . . . . . . . . . . . . . . Hover . | . . . . . . . . . . . . . . . . . . Flight 4713 | . . 138 58 326 490 381 622 913 36 357 367 93 682 . 33 217 . Fastest Speed 20 | 50 80 31 31 28 26 26 20 20 24 24 24 162 32 50 30 50 50 Average Speed 39 | 77 80 59 31 28 27 26 20 23 24 24 37 162 35 50 59 122 50 Slowest Speed 162 | 80 80 115 31 28 96 26 22 24 24 24 162 162 100 50 150 160 50 Overloaded Moves . | . . . . . . . . . . . . . . . . . . Propulsion Burnouts . | . . . . . . . . . . . . . . . . . . Robots Hopped 58 | . . . 1 8 8 5 1 15 . . 2 . 9 . 3 6 . Potential Cave-ins . | . . . . . . . . . . . . . . . . . . Cave-ins Triggered . | . . . . . . . . . . . . . . . . . . Exploration Rate (%) 36 | 3 13 37 12 23 83 78 19 42 2 56 66 14 88 1 94 15 2 Regions Visited 17 Branch Regions 8 Pre-discovered Areas 1 | . . . 1 . . . . . . . . . . . . . . Known Exits Taken 8 | . . . . . . . 1 1 1 1 1 1 1 1 . . . Unknown Exits Taken 8 | 1 1 1 1 1 1 1 . . . . . . . . . 1 . Scrap Searched 3 | . . . . . . . . . . 1 1 . 1 . . . . Spaces Dug 52 | . . . . . 21 . . 31 . . . . . . . . . Terrain Destroyed 252 | . . . . . 114 . 8 70 . . . . . . 60 . . Melee . | . . . . . . . . . . . . . . . . . . Projectile . | . . . . . . . . . . . . . . . . . . AOE 252 | . . . . . 114 . 8 70 . . . . . . 60 . . Terrain Rammed . | . . . . . . . . . . . . . . . . . . Walls Destroyed . | . . . . . . . . . . . . . . . . . . Machines Disabled . | . . . . . . . . . . . . . . . . . . Actions | -11 -10 -9 -9 -8 -8 -8 -6 -5 -4 -4 -4 -4 -3 -3 -3 -2 -2 --------- Run | Yrd Mat Mat Min Mat Sto Rec Fac Fac Fac Upp Upp War Pro Res DSF Res Tes Total 6065 | 56 82 488 64 456 558 375 803 952 38 430 368 92 796 29 186 291 1 Wait 541 | . . 107 6 113 34 . 167 8 . 74 . . 31 . . 1 . Move 5211 | 47 70 323 55 312 473 370 619 884 35 356 362 92 744 29 170 269 1 Hop 52 | . . . 1 5 8 5 1 13 . . 2 . 9 . 2 6 . Pick Up 46 | 3 7 8 1 5 3 . 4 13 2 . . . . . . . . Fast Attach 35 | 5 . 5 . 3 1 . 1 3 . . 1 . 2 . 5 9 . Attach 25 | 1 . 1 . 3 3 . 4 5 . . 3 . 3 . . 2 . Detach 6 | . . . . 1 . . . . . . . . 4 . . 1 . Swap 18 | . . 3 . 2 6 . 4 3 . . . . . . . . . Drop 36 | . 1 7 1 4 3 . 1 13 1 . . . 3 . . 2 . Fire 86 | . 4 34 . 8 25 . 2 10 . . . . . . 3 . . Melee . | . . . . . . . . . . . . . . . . . . Ram 3 | . . . . . 2 . . . . . . . . . . 1 . Kick . | . . . . . . . . . . . . . . . . . . Crush . | . . . . . . . . . . . . . . . . . . Escape Stasis 4 | . . . . . . . . . . . . . . . 4 . . Rewire 2 | . . . . . . . . . . . . . . . 2 . . Trap . | . . . . . . . . . . . . . . . . . . Miscellaneous . | . . . . . . . . . . . . . . . . . . Route ------- -11/Scrapyard -10/Materials -9/Materials -9/Mines -8/Materials -8/Storage -8/Recycling (discovered 2 exits: *Fac / [*Scr]) -6/Factory -5/Factory (discovered 2 exits: *Fac / *Ext) -4/Factory -4/Upper Caves (discovered 2 exits: *Upp / *War) -4/Upper Caves -4/Warlord -3/Proximity Caves -3/Research (discovered 3 exits: Res x2 / DSF) -3/DSF -2/Research -2/Testing History --------- Turn | Location | Event 10 | -11/Scrapyard | Discovered new exit (range 15) 49 | -11/Scrapyard | Entered Materials 114 | -10/Materials | Discovered new exit (range 5) 125 | -10/Materials | Entered another Materials area 125 | -9/Materials | Evolved 2 slots: Propulsion x2 300 | -9/Materials | Build established: Mutant 311 | -9/Materials | Discovered new exit (range 16) 546 | -9/Materials | Entered Mines 552 | -9/Mines | Discovered new exit (range 11) 554 | -9/Mines | Learned location of Storage (-8) 561 | -9/Mines | Received a Rocket Launcher from a helpful Derelict 572 | -9/Mines | Entered Materials 572 | -8/Materials | Evolved 2 slots: Power x1, Propulsion x1 650 | -8/Materials | Repaired Adv. Beam Cannon 702 | -8/Materials | Repaired Imp. Flight Unit 769 | -8/Materials | Build established: Sprinter 808 | -8/Materials | Discovered new exit (range 12) 812 | -8/Materials | Entered Storage 1056 | -8/Storage | Core integrity fell below 50% 1057 | -8/Storage | Used back door to open Recycling access 1057 | -8/Storage | Discovered new exit (range 5) 1058 | -8/Storage | Entered Recycling 1059 | -8/Recycling | Lost 3 parts (1n1u1w) 1122 | -8/Recycling | Scanned before Scraplab entrance 1126 | -8/Recycling | Entered Scraplab 1129 | -8/Recycling | Discovered new exit (range 2) 1154 | -8/Recycling | Discovered new exit (range 14) 1157 | -8/Recycling | Entered Factory 1157 | -6/Factory | Evolved 4 slots: Propulsion x1, Utility x3 1472 | -6/Factory | Discovered new exit (range 14) 1475 | -6/Factory | Identified exit to Factory 1475 | -6/Factory | Entered another Factory area 1475 | -5/Factory | Evolved 2 slots: Utility x2 1568 | -5/Factory | Spotted B-75 Beast 1702 | -5/Factory | Discovered new exit (range 10) 1704 | -5/Factory | Identified exit to Extension 1744 | -5/Factory | Discovered new exit (range 5) 1745 | -5/Factory | Identified exit to Factory 1751 | -5/Factory | Entered another Factory area 1751 | -4/Factory | Evolved 2 slots: Utility x2 1760 | -4/Factory | Discovered new exit (range 11) 1762 | -4/Factory | Identified exit to Upper Caves 1762 | -4/Factory | Entered Upper Caves 1899 | -4/Upper Caves | A Derelict revealed a hidden shortcut to "reach the base" 1920 | -4/Upper Caves | Discovered new exit (range 8) 1922 | -4/Upper Caves | Identified exit to Upper Caves 1922 | -4/Upper Caves | Entered another Upper Caves area 1930 | -4/Upper Caves | Spotted B-86 Titan 1939 | -4/Upper Caves | Attracted the attention of an 0b10 outpost 1952 | -4/Upper Caves | Learned 8 Research zone layouts 2036 | -4/Upper Caves | Lost 11 parts (1p3n5u2w) 2038 | -4/Upper Caves | Learned 8 Research zone layouts 2050 | -4/Upper Caves | Discovered new exit (range 13) 2062 | -4/Upper Caves | Identified exit to Warlord 2064 | -4/Upper Caves | Entered Warlord 2191 | -4/Warlord | Discovered new exit (range 16) 2210 | -4/Warlord | Identified exit to Proximity Caves 2214 | -4/Warlord | Entered Proximity Caves 2469 | -3/Proximity Caves | Spotted B-86 Titan 2493 | -3/Proximity Caves | Core integrity fell below 50% 2514 | -3/Proximity Caves | Discovered new exit (range 13) 2520 | -3/Proximity Caves | Identified exit to Research 2522 | -3/Proximity Caves | Entered Research 2522 | -3/Research | Evolved 2 slots: Propulsion x2 2523 | -3/Research | Identified exit to Research 2524 | -3/Research | Identified exit to DSF 2529 | -3/Research | Lost 5 parts (1n4u) 2537 | -3/Research | Entered DSF 2563 | -3/DSF | Additional patrols routed to DSF 2569 | -3/DSF | Discovered exit to Research (range 15) 2607 | -3/DSF | Core integrity fell below 50% 2661 | -3/DSF | Entered Research 2661 | -2/Research | Evolved 2 slots: Utility x2 2786 | -2/Research | Build established: Mutant 2937 | -2/Research | Lost 3 parts (3n) 2961 | -2/Research | Spotted B-90 Cyclops 3008 | -2/Research | Core integrity fell below 50% 3019 | -2/Research | Discovered new exit (range 16) 3021 | -2/Research | Core integrity fell below 20% 3027 | -2/Research | Entered Testing 3028 | -2/Testing | Destroyed by X-82 Rainmaker with Heavy Flak Cannon Last Messages --------------- 03003_ Penetrated by Slug. 03005_ K-01 Serf collects debris. 03005_ U-05 Engineer builds a Wall. 03005_ Slammed into S-43 Plague. 03005_ Adv. Weight Redist. System broken. 03005_ Destabilizing: Short circuit. 03005_ Penetrated by Slug. 03005_ Slug penetrates Wall. 03006_ Penetrated by Slug. 03007_ Slug penetrates Wall. 03008_ Penetrated by Slug. 03010_ Slug penetrates Wall. 03011_ Penetrated by Slug. 03011_ Slug penetrates Wall. 03015_ Imp. Utility Shielding destroyed. 03018_ Broken Adv. Weight Redist. System destroyed. 03019_ EXIT=FOUND 03019_ Slug penetrates Wall. LOCATION=UNKNOWN GOAL=ESCAPE Map ----- +----------------------------------------------------+ | ?????????????????????????????????????????????? | | ?????????????????????????????????????????????? | | ?????????????????????????????????????????????? | | ?????????????????????????????????????????????? | | ?????????????????????????????????????????????? | | ?????????????????????????????????????????????? | | ?????????????????????????????????????????????? | | ?????????????????????????????????????????????? | | ?????????????????????????????????????????????? | | ?????????????????????????????????????????????? | | ?????????????????????????????????????????????? | | ?????????????????????????????????????????????? | | ?????????????????????????????????????????????? | | ?????????????????????????????????????????????? | | ?????????????????????????????????????????????? | | ?????????????????????????????????????????????? | | ?????????????????????????????????????????????? | | ?????????????????????????????????????????????? | | ?????????????????????????????????????????????? | | ?????????????????????????????????????????????? | | ?????????????????????????????????????????????? | | ?????????????????????????????????????????????? | | ?????????????????????????????????????????????? | | ?????????????????####+#############??????????? | | ?????????????????# ????????? | | ?????????????????# @ ????????? | | ?????????????????# ????????? | | ?????????????????# ????????? | | ?????????????????####+###### ####?????????? | | ?????????????????????????????? x??????????? | | ????????????????????????????????? x??????????? | | ?????????????????????????????????????????????? | | ?????????????????????????????????????????????? | | ?????????????????????????????????????????????? | | ?????????????????????????????????????????????? | | ?????????????????????????????????????????????? | | ?????????????????????????????????????????????? | | ?????????????????????????????????????????????? | | ?????????????????????????????????????????????? | | ?????????????????????????????????????????????? | | ?????????????????????????????????????????????? | | ?????????????????????????????????????????????? | | ?????????????????????????????????????????????? | | ?????????????????????????????????????????????? | | | | | | | | | | | | | +----------------------------------------------------+ Best States ------------- Heat Dissipation 81 Energy Generation 30 Energy Capacity 495 Matter Stores 300 Matter Capacity 300 Sight Range 22 Robot Scan Range 15 Terrain Scan Density 10 Power Amplification 30 Additional Mass Support 9 Base Temperature (-) 100 Corruption Containment 12 Utility Shielding 66 Evasion (%) 71 Melee Accuracy 8 Recoil Reduction 4 Offensive Hacking 11 Defensive Hacking 24 Item Schematics ----------------- None Robot Schematics ------------------ None Fabricated ------------ Nothing Repaired ---------- Adv. Beam Cannon | 16% | -8/Materials Imp. Flight Unit | 60% | -8/Materials Studied --------- Nuclear Pulse Array | -5/Factory | Hacked Mic. Nuclear Core | -5/Factory | Hacked Alien Tech Used ----------------- None Achievements -------------- Can't Catch Me Cya! Physics Hates This One Trick Challenges ------------ None Game ------ Seed DirectedImpactDoomcannon Manual? 0 Play Time 01:07:00 Cumulative 45.7 hours Start 2025.11.03 @ 07:13:13 End 2025.11.03 @ 16:51:24 Sessions 2 Manual Loads 0 Difficulty Rogue Special Mode None Game No. 55 Rogue 55 Adventurer 0 Explorer 0 Win Type - Total 0 Types 0/0/0/0/0/0/0/0/0/0 Lore% 12 Gallery% 33 Achievement% 23 Wizard Run 0 Options --------- Layout 0 ASCII 0 Keyboard 1 Movement Arrows Keybinds 0 Fullscreen 1 Font 24/Smallcaps Map View 76x50 Zoom Use 0% Tactical HUD 1 Map Filters NONE Filters NONE Steam 1 RUN: 81f8eff2-e7e4-45c7-b4f0-100c18b82586